fUST/lending_fUST_20250625
["ID","MTS","AMOUNT","RATE_DAILY","PERIOD"]
[367414578,1750789849827,-1109.59,0.00017534,2]
[367414580,1750789849836,-460.0,0.00017534,2]
[367414582,1750789849845,-460.0,0.00017534,2]
[367414584,1750789849854,-460.0,0.00017534,2]
[367414585,1750789849863,-460.0,0.00017534,2]
[367414587,1750789849872,-460.0,0.00017534,2]
[367414589,1750789849881,-1134.16,0.00017534,2]
[367414591,1750789849891,-460.0,0.00017534,2]
[367414593,1750789849900,-609.57,0.00017534,2]
[367414595,1750789849910,-460.0,0.00017534,2]
[367414597,1750789849919,-151.0,0.00017605,2]
[367414599,1750789849927,-151.0,0.00017605,2]
[367414601,1750789849936,-500.0,0.00017605,2]
[367414603,1750789849945,-500.0,0.00017605,2]
[367414605,1750789849954,-174.69466745,0.00017684,2]
[367414607,1750789849963,-500.0,0.00017691,2]
[367414608,1750789849972,-500.0,0.00017691,2]
[367414610,1750789849981,-420.0,0.00017696,2]
[367414612,1750789849990,-420.0,0.00017697,2]
[367414614,1750789849999,-1203.36774309,0.00017708,2]
[367414616,1750789850008,-460.0,0.00017758,2]
[367414618,1750789850018,-434.97691613,0.00017758,2]
[367414620,1750789850027,-247.13561768,0.00017758,2]
[367414622,1750789850036,-460.0,0.00017758,2]
[367414624,1750789850045,-460.0,0.00017758,2]
[367414626,1750789850053,-460.0,0.00017758,2]
[367414628,1750789850063,-460.0,0.00017758,2]
[367414630,1750789850072,-432.40831993,0.00017758,2]
[367414632,1750789850080,-151.0,0.00017758,2]
[367414633,1750789850090,-151.0,0.00017758,2]
[367414635,1750789850099,-151.0,0.00017758,2]
[367414637,1750789850108,-151.0,0.00017758,2]
[367414639,1750789850117,-460.0,0.00017758,2]
[367414641,1750789850127,-604.89718336,0.00017758,2]
[367414643,1750789850136,-464.66827969,0.00017758,2]
[367414645,1750789850145,-463.16654347,0.00017758,2]
[367414647,1750789850154,-277.56638649,0.00017758,2]
[367414649,1750789850163,-151.0,0.00017758,2]
[367414651,1750789850172,-172.75183776,0.00017758,2]
[367414652,1750789850180,-460.0,0.00017758,2]
[367414666,1750789850307,-460.0,0.00017758,2]
[367414668,1750789850317,-529.00816846,0.00017758,2]
[367414670,1750789850326,-151.0,0.00017758,2]
[367414672,1750789850335,-460.0,0.00017758,2]
[367414674,1750789850344,-151.0,0.00017758,2]
[367414676,1750789850353,-460.0,0.00017758,2]
[367414678,1750789850363,-436.69743649,0.00017758,2]
[367414680,1750789850371,-309.43631587,0.00017758,2]
[367414682,1750789850384,-480.629192,0.00017758,2]
[367414684,1750789850395,-585.51,0.00017758,2]
[367414686,1750789850404,-460.0,0.00017758,2]
[367414688,1750789850413,-483.72,0.00017758,2]
[367414690,1750789850421,-460.0,0.00017758,2]
[367414692,1750789850430,-460.0,0.00017758,2]
[367414693,1750789850438,-460.0,0.00017758,2]
[367414695,1750789850448,-460.0,0.00017758,2]
[367414697,1750789850456,-460.0,0.00017758,2]
[367414699,1750789850465,-460.0,0.00017758,2]
[367414701,1750789850474,-460.0,0.00017758,2]
[367414703,1750789850484,-495.52,0.00017758,2]
[367414705,1750789850494,-657.28,0.00017758,2]
[367414707,1750789850503,-460.0,0.00017758,2]
[367414709,1750789850512,-1596.13,0.00017758,2]
[367414711,1750789850521,-2939.45,0.00017758,2]
[367414713,1750789850531,-479.58,0.00017758,2]
[367414715,1750789850540,-528.43,0.00017758,2]
[367414717,1750789850549,-460.0,0.00017758,2]
[367414719,1750789850559,-460.0,0.00017758,2]
[367414720,1750789850568,-460.0,0.00017758,2]
[367414722,1750789850577,-544.42,0.00017758,2]
[367414724,1750789850587,-460.0,0.00017758,2]
[367414726,1750789850597,-460.0,0.00017758,2]
[367414728,1750789850606,-460.0,0.00017758,2]
[367414730,1750789850615,-1326.73,0.00017758,2]
[367414732,1750789850625,-1245.03,0.00017758,2]
[367414734,1750789850635,-163.655911,0.00017759,2]
[367414736,1750789850644,-151.0,0.00017759,2]
[367414738,1750789850654,-460.0,0.00017759,2]
[367414740,1750789850663,-460.0,0.00017759,2]
[367414742,1750789850672,-151.0,0.00017759,2]
[367414744,1750789850681,-460.0,0.00017759,2]
[367414745,1750789850690,-151.0,0.00017759,2]
[367414747,1750789850700,-303.435665,0.00017759,2]
[367414749,1750789850710,-460.0,0.00017759,2]
[367414751,1750789850720,-303.435665,0.00017759,2]
[367414753,1750789850734,-460.0,0.00017759,2]
[367414755,1750789850743,-460.0,0.00017759,2]
[367414757,1750789850753,-460.0,0.00017759,2]
[367414758,1750789850762,-824.68,0.00017759,2]
[367414759,1750789850773,-185.755673,0.00017759,2]
[367414760,1750789850782,-151.0,0.00017759,2]
[367414761,1750789850791,-460.0,0.00017759,2]
[367414762,1750789850801,-667.57,0.00017759,2]
[367414763,1750789850811,-468.26,0.00017759,2]
[367414764,1750789850821,-460.0,0.0001776,2]
[367414765,1750789850829,-151.0,0.00017762,2]
[367414766,1750789850839,-461.45439657,0.00017764,2]
[367414767,1750789850847,-461.60322222,0.00017764,2]
[367414768,1750789850856,-460.0,0.00017764,2]
[367414769,1750789850865,-460.0,0.00017764,2]
[367414770,1750789850875,-460.0,0.00017764,2]
[367414771,1750789850883,-460.0,0.00017764,2]
[367414772,1750789850892,-445.16398853,0.00017764,2]
[367414773,1750789850901,-581.47581289,0.00017764,2]
[367414774,1750789850911,-460.0,0.00017764,2]
[367414775,1750789850919,-460.0,0.00017764,2]
[367414776,1750789850930,-460.0,0.00017764,2]
[367414777,1750789850939,-465.47860159,0.00017764,2]
[367414778,1750789850947,-460.0,0.00017764,2]
[367414779,1750789850956,-460.0,0.00017764,2]
[367414780,1750789850965,-460.0,0.00017764,2]
[367414781,1750789850974,-460.0,0.00017764,2]
[367414782,1750789850983,-151.0,0.00017764,2]
[367414783,1750789850992,-460.0,0.00017764,2]
[367414784,1750789851001,-460.0,0.00017764,2]
[367414785,1750789851011,-489.16401167,0.00017764,2]
[367414786,1750789851019,-454.44032471,0.00017764,2]
[367414787,1750789851028,-460.0,0.00017764,2]
[367414788,1750789851037,-464.2090881,0.00017764,2]
[367414789,1750789851046,-460.0,0.00017764,2]
[367414791,1750789851055,-460.0,0.00017764,2]
[367414792,1750789851065,-503.27822163,0.00017764,2]
[367414794,1750789851075,-460.0,0.00017764,2]
[367414796,1750789851084,-460.0,0.00017764,2]
[367414798,1750789851093,-151.0,0.00017764,2]
[367414800,1750789851103,-440.0,0.00017764,2]
[367414802,1750789851112,-460.0,0.00017764,2]
[367414804,1750789851121,-237.3656,0.00017764,2]
[367414806,1750789851131,-151.0,0.00017764,2]
[367414808,1750789851140,-151.0,0.00017764,2]
[367414810,1750789851149,-151.0,0.00017764,2]
[367414812,1750789851158,-460.0,0.00017764,2]
[367414814,1750789851167,-440.0,0.00017764,2]
[367414816,1750789851176,-460.0,0.00017764,2]
[367414818,1750789851185,-460.0,0.00017764,2]
[367414820,1750789851194,-151.0,0.00017764,2]
[367414822,1750789851204,-151.0,0.00017764,2]
[367414824,1750789851214,-232.94657061,0.00017764,2]
[367414826,1750789851223,-460.0,0.00017764,2]
[367414828,1750789851232,-460.0,0.00017764,2]
[367414830,1750789851241,-151.0,0.00017764,2]
[367414832,1750789851250,-460.0,0.00017764,2]
[367414834,1750789851258,-446.00547333,0.00017764,2]
[367414836,1750789851267,-460.0,0.00017764,2]
[367414838,1750789851276,-430.687112,0.00017764,2]
[367414840,1750789851284,-430.687112,0.00017764,2]
[367414842,1750789851294,-647.219864,0.00017764,2]
[367414844,1750789851303,-647.219864,0.00017764,2]
[367414845,1750789851312,-246.555645,0.00017764,2]
[367414847,1750789851321,-246.555645,0.00017764,2]
[367414849,1750789851330,-151.0,0.0001777,2]
[367414851,1750789851339,-1680.0,0.00017784,2]
[367414853,1750789851348,-460.0,0.00017808,2]
[367414855,1750789851357,-1221.79,0.00017808,2]
[367414857,1750789851366,-460.0,0.00017808,2]
[367414859,1750789851376,-949.17,0.00017808,2]
[367414861,1750789851385,-460.0,0.00017808,2]
[367414863,1750789851394,-422.29500605,0.00017808,2]
[367414865,1750789851403,-566.92,0.00017808,2]
[367414867,1750789851412,-905.2,0.00017808,2]
[367414869,1750789851421,-475.22,0.00017808,2]
[367414871,1750789851430,-1741.44,0.00017808,2]
[367414873,1750789851439,-827.18,0.00017808,2]
[367414875,1750789851448,-460.0,0.00017808,2]
[367414877,1750789851457,-594.89,0.00017808,2]
[367414879,1750789851466,-550.07,0.00017808,2]
[367414881,1750789851475,-460.0,0.00017808,2]
[367414883,1750789851485,-460.0,0.00017808,2]
[367414885,1750789851494,-460.0,0.00017808,2]
[367414887,1750789851503,-1109.59,0.00017808,2]
[367414889,1750789851512,-460.0,0.00017808,2]
[367414891,1750789851521,-460.0,0.00017808,2]
[367414893,1750789851530,-460.0,0.00017808,2]
[367414894,1750789851538,-460.0,0.00017808,2]
[367414896,1750789851547,-460.0,0.00017808,2]
[367414899,1750789851560,-1134.16,0.00017808,2]
[367414901,1750789851573,-460.0,0.00017808,2]
[367414904,1750789851587,-609.57,0.00017808,2]
[367414906,1750789851601,-460.0,0.00017808,2]
[367414908,1750789851612,-1000.0,0.00017821,2]
[367414911,1750789851625,-1000.0,0.00017821,2]
[367414913,1750789851637,-1038.41850721,0.00017821,2]
[367414915,1750789851649,-1101.45710407,0.00017894,2]
[367414918,1750789851663,-500.0,0.00017915,2]
[367414920,1750789851676,-500.0,0.00017929,2]
[367414922,1750789851688,-1000.0,0.00017974,2]
[367414925,1750789851701,-1000.0,0.00017974,2]
[367414927,1750789851715,-1000.0,0.00017974,2]
[367414929,1750789851729,-1000.0,0.00017974,2]
[367414931,1750789851745,-198.28721561,0.00018,2]
[367414934,1750789851757,-151.0,0.00018019,2]
[367414936,1750789851768,-201.518914,0.00018019,2]
[367414938,1750789851783,-296.049215,0.00018019,2]
[367414940,1750789851797,-296.049215,0.00018019,2]
[367414943,1750789851811,-151.0,0.00018019,2]
[367414945,1750789851822,-151.0,0.00018019,2]
[367414947,1750789851833,-480.629192,0.00018019,2]
[367414949,1750789851845,-151.0,0.00018019,2]
[367414952,1750789851858,-218.04,0.00018019,2]
[367414954,1750789851870,-500.0,0.00018019,2]
[367414956,1750789851885,-19220.00648573,0.00018019,2]
[367414959,1750789851897,-900.791436,0.00018019,2]
[367414961,1750789851910,-500.0,0.00018019,2]
[367414963,1750789851924,-500.0,0.00018019,2]
[367414966,1750789851935,-500.0,0.00018019,2]
[367414968,1750789851945,-500.0,0.00018019,2]
[367414970,1750789851955,-500.0,0.00018019,2]
[367414972,1750789851966,-500.0,0.00018019,2]
[367414974,1750789851980,-500.0,0.00018019,2]
[367414977,1750789851993,-500.0,0.00018019,2]
[367414979,1750789852005,-500.0,0.00018019,2]
[367414981,1750789852016,-500.0,0.00018019,2]
[367414983,1750789852027,-500.0,0.00018019,2]
[367414985,1750789852039,-500.0,0.00018019,2]
[367414988,1750789852052,-500.0,0.00018019,2]
[367414990,1750789852063,-500.0,0.00018019,2]
[367414992,1750789852073,-500.0,0.00018019,2]
[367414994,1750789852084,-500.0,0.00018019,2]
[367414996,1750789852095,-500.0,0.00018019,2]
[367414999,1750789852106,-500.0,0.00018019,2]
[367415001,1750789852117,-500.0,0.00018019,2]
[367415003,1750789852128,-500.0,0.00018019,2]
[367415005,1750789852139,-500.0,0.00018019,2]
[367415007,1750789852150,-500.0,0.00018019,2]
[367415009,1750789852161,-500.0,0.00018019,2]
[367415011,1750789852172,-500.0,0.00018019,2]
[367415014,1750789852184,-207.4,0.00018019,2]
[367415016,1750789852195,-500.0,0.00018019,2]
[367415018,1750789852206,-500.0,0.00018019,2]
[367415020,1750789852219,-500.0,0.00018019,2]
[367415022,1750789852229,-500.0,0.00018019,2]
[367415025,1750789852240,-500.0,0.00018019,2]
[367415027,1750789852251,-500.0,0.00018019,2]
[367415029,1750789852262,-5000.0,0.00018019,2]
[367415031,1750789852272,-500.0,0.00018019,2]
[367415033,1750789852283,-500.0,0.00018019,2]
[367415035,1750789852294,-500.0,0.00018019,2]
[367415038,1750789852305,-500.0,0.00018019,2]
[367415040,1750789852316,-500.0,0.00018019,2]
[367415042,1750789852327,-460.0,0.00018032,2]
[367415044,1750789852338,-506.58158878,0.00018032,2]
[367415046,1750789852349,-460.0,0.00018032,2]
[367415048,1750789852361,-460.0,0.00018032,2]
[367415051,1750789852371,-451.70702414,0.00018032,2]
[367415053,1750789852383,-151.0,0.00018032,2]
[367415055,1750789852394,-151.0,0.00018032,2]
[367415057,1750789852406,-151.0,0.00018032,2]
[367415059,1750789852417,-151.0,0.00018032,2]
[367415061,1750789852428,-457.13057445,0.00018032,2]
[367415064,1750789852439,-151.0,0.00018032,2]
[367415066,1750789852450,-460.0,0.00018032,2]
[367415068,1750789852461,-460.0,0.00018032,2]
[367415070,1750789852471,-487.28,0.00018032,2]
[367415072,1750789852482,-460.0,0.00018032,2]
[367415074,1750789852493,-460.0,0.00018032,2]
[367415076,1750789852504,-460.0,0.00018032,2]
[367415079,1750789852515,-563.95,0.00018032,2]
[367415081,1750789852526,-518.39,0.00018032,2]
[367415083,1750789852537,-657.28,0.00018032,2]
[367415085,1750789852548,-460.0,0.00018032,2]
[367415087,1750789852559,-1596.13,0.00018032,2]
[367415089,1750789852570,-2939.45,0.00018032,2]
[367415092,1750789852581,-479.58,0.00018032,2]
[367415094,1750789852592,-528.43,0.00018032,2]
[367415096,1750789852603,-460.0,0.00018032,2]
[367415098,1750789852614,-460.0,0.00018032,2]
[367415100,1750789852625,-544.42,0.00018032,2]
[367415103,1750789852638,-460.0,0.00018032,2]
[367415105,1750789852649,-460.0,0.00018032,2]
[367415107,1750789852659,-1326.73,0.00018032,2]
[367415109,1750789852670,-1245.03,0.00018032,2]
[367415111,1750789852681,-224.481042,0.00018033,2]
[367415113,1750789852693,-221.45530948,0.00018033,2]
[367415116,1750789852704,-460.0,0.00018033,2]
[367415118,1750789852715,-151.0,0.00018033,2]
[367415120,1750789852728,-460.0,0.00018033,2]
[367415122,1750789852739,-460.0,0.00018033,2]
[367415124,1750789852750,-460.0,0.00018033,2]
[367415126,1750789852761,-460.0,0.00018033,2]
[367415128,1750789852773,-460.0,0.00018033,2]
[367415131,1750789852784,-824.68,0.00018033,2]
[367415133,1750789852794,-580.42,0.00018033,2]
[367415135,1750789852806,-151.0,0.00018033,2]
[367415137,1750789852817,-667.57,0.00018033,2]
[367415139,1750789852828,-151.0,0.00018036,2]
[367415141,1750789852840,-151.0,0.00018036,2]
[367415144,1750789852852,-303.435665,0.00018036,2]
[367415146,1750789852863,-303.435665,0.00018036,2]
[367415148,1750789852874,-460.0,0.00018038,2]
[367415150,1750789852886,-460.0,0.00018038,2]
[367415152,1750789852897,-460.0,0.00018038,2]
[367415154,1750789852909,-492.84065387,0.00018038,2]
[367415156,1750789852921,-471.80144733,0.00018038,2]
[367415159,1750789852931,-460.0,0.00018038,2]
[367415161,1750789852941,-460.0,0.00018038,2]
[367415163,1750789852950,-460.0,0.00018038,2]
[367415165,1750789852960,-460.0,0.00018038,2]
[367415166,1750789852970,-151.0,0.00018038,2]
[367415169,1750789852980,-465.98167006,0.00018038,2]
[367415170,1750789852988,-460.0,0.00018038,2]
[367415172,1750789852998,-430.0,0.00018038,2]
[367415174,1750789853006,-151.0,0.00018038,2]
[367415176,1750789853015,-405.81851218,0.00018038,2]
[367415178,1750789853024,-151.0,0.00018038,2]
[367415180,1750789853034,-151.0,0.00018038,2]
[367415182,1750789853043,-158.561703,0.00018038,2]
[367415184,1750789853051,-460.0,0.00018038,2]
[367415186,1750789853061,-151.0,0.00018038,2]
[367415188,1750789853070,-151.0,0.00018038,2]
[367415190,1750789853079,-460.0,0.00018038,2]
[367415192,1750789853088,-151.0,0.00018038,2]
[367415214,1750789853293,-460.0,0.00018038,2]
[367415217,1750789853314,-430.687112,0.00018038,2]
[367415218,1750789853327,-430.687112,0.00018038,2]
[367415219,1750789853337,-647.219864,0.00018038,2]
[367415220,1750789853346,-647.219864,0.00018038,2]
[367415221,1750789853355,-246.555645,0.00018038,2]
[367415222,1750789853364,-246.555645,0.00018038,2]
[367415223,1750789853373,-5888.0,0.00018045,2]
[367415224,1750789853383,-224.00444455,0.00018061,2]
[367415225,1750789853392,-1701.88,0.00018072,3]
[367415226,1750789853401,-850.94,0.00018072,3]
[367415228,1750789853411,-425.46,0.00018072,3]
[367415230,1750789853421,-460.0,0.00018082,2]
[367415232,1750789853430,-1221.79,0.00018082,2]
[367415234,1750789853439,-460.0,0.00018082,2]
[367415236,1750789853448,-949.17,0.00018082,2]
[367415238,1750789853458,-460.0,0.00018082,2]
[367415240,1750789853467,-566.92,0.00018082,2]
[367415242,1750789853476,-905.2,0.00018082,2]
[367415244,1750789853486,-475.22,0.00018082,2]
[367415246,1750789853495,-1741.44,0.00018082,2]
[367415248,1750789853505,-827.18,0.00018082,2]
[367415250,1750789853514,-460.0,0.00018082,2]
[367415252,1750789853524,-594.89,0.00018082,2]
[367415254,1750789853534,-550.07,0.00018082,2]
[367415256,1750789853543,-460.0,0.00018082,2]
[367415258,1750789853552,-460.0,0.00018082,2]
[367415260,1750789853561,-460.0,0.00018082,2]
[367415262,1750789853571,-1109.59,0.00018082,2]
[367415264,1750789853580,-460.0,0.00018082,2]
[367415266,1750789853589,-460.0,0.00018082,2]
[367415268,1750789853598,-460.0,0.00018082,2]
[367415270,1750789853607,-460.0,0.00018082,2]
[367415272,1750789853617,-460.0,0.00018082,2]
[367415274,1750789853626,-1134.16,0.00018082,2]
[367415276,1750789853636,-460.0,0.00018082,2]
[367415278,1750789853645,-609.57,0.00018082,2]
[367415280,1750789853654,-460.0,0.00018082,2]
[367415282,1750789853663,-500.0,0.00018153,2]
[367415284,1750789853672,-517.33332786,0.00018153,2]
[367415286,1750789853682,-242.0,0.00018159,2]
[367415288,1750789853691,-242.0,0.00018193,2]
[367415290,1750789853701,-524.02133491,0.00018239,2]
[367415292,1750789853710,-242.0,0.00018241,2]
[367415294,1750789853719,-242.0,0.00018275,2]
[367415296,1750789853732,-177.3826656,0.00018295,2]
[367415298,1750789853741,-242.0,0.00018299,2]
[367415300,1750789853750,-242.0,0.00018299,2]
[367415302,1750789853759,-159.1692736,0.000183,2]
[367415304,1750789853768,-317.5842967,0.000183,2]
[367415306,1750789853778,-574.8597778,0.000183,2]
[367415308,1750789853787,-159.1692736,0.000183,2]
[367415310,1750789853796,-574.8597778,0.000183,2]
[367415312,1750789853806,-159.1692736,0.000183,2]
[367415314,1750789853815,-574.8597778,0.000183,2]
[367415316,1750789853824,-1203.36774309,0.00018305,2]
[367415317,1750789853833,-460.0,0.00018306,2]
[367415319,1750789853842,-547.80129995,0.00018306,2]
[367415321,1750789853851,-465.52564176,0.00018306,2]
[367415323,1750789853860,-460.0,0.00018306,2]
[367415325,1750789853869,-657.28,0.00018306,2]
[367415327,1750789853881,-460.0,0.00018306,2]
[367415329,1750789853890,-1596.13,0.00018306,2]
[367415331,1750789853899,-2939.45,0.00018306,2]
[367415334,1750789853909,-479.58,0.00018306,2]
[367415336,1750789853919,-528.43,0.00018306,2]
[367415338,1750789853928,-460.0,0.00018306,2]
[367415339,1750789853937,-182.50267997,0.00018306,2]
[367415341,1750789853946,-544.42,0.00018306,2]
[367415343,1750789853955,-460.0,0.00018306,2]
[367415345,1750789853964,-460.0,0.00018306,2]
[367415347,1750789853973,-1326.73,0.00018306,2]
[367415349,1750789853982,-1245.03,0.00018306,2]
[367415351,1750789853991,-460.0,0.00018307,2]
[367415353,1750789854000,-460.0,0.00018307,2]
[367415355,1750789854009,-151.0,0.00018307,2]
[367415358,1750789854018,-460.0,0.00018307,2]
[367415360,1750789854028,-151.0,0.00018307,2]
[367415362,1750789854037,-480.629192,0.00018307,2]
[367415363,1750789854046,-460.0,0.00018307,2]
[367415365,1750789854056,-151.0,0.00018307,2]
[367415368,1750789854065,-460.0,0.00018307,2]
[367415370,1750789854074,-460.0,0.00018307,2]
[367415372,1750789854083,-824.68,0.00018307,2]
[367415373,1750789854092,-667.57,0.00018307,2]
[367415376,1750789854101,-460.0,0.00018312,2]
[367415378,1750789854111,-460.0,0.00018312,2]
[367415380,1750789854120,-458.42,0.00018312,2]
[367415381,1750789854129,-466.92775724,0.00018312,2]
[367415383,1750789854139,-460.0,0.00018312,2]
[367415385,1750789854148,-460.0,0.00018312,2]
[367415387,1750789854157,-1221.79,0.00018356,2]
[367415389,1750789854166,-460.0,0.00018356,2]
[367415392,1750789854175,-949.17,0.00018356,2]
[367415393,1750789854184,-460.0,0.00018356,2]
[367415395,1750789854193,-566.92,0.00018356,2]
[367415397,1750789854202,-905.2,0.00018356,2]
[367415400,1750789854212,-1741.44,0.00018356,2]
[367415401,1750789854221,-475.22,0.00018356,2]
[367415403,1750789854230,-827.18,0.00018356,2]
[367415405,1750789854239,-460.0,0.00018356,2]
[367415408,1750789854248,-594.89,0.00018356,2]
[367415409,1750789854257,-550.07,0.00018356,2]
[367415411,1750789854266,-460.0,0.00018356,2]
[367415413,1750789854275,-460.0,0.00018356,2]
[367415415,1750789854283,-460.0,0.00018356,2]
[367415417,1750789854292,-1109.59,0.00018356,2]
[367415419,1750789854301,-460.0,0.00018356,2]
[367415421,1750789854310,-460.0,0.00018356,2]
[367415423,1750789854319,-460.0,0.00018356,2]
[367415425,1750789854329,-460.0,0.00018356,2]
[367415427,1750789854338,-460.0,0.00018356,2]
[367415429,1750789854347,-1134.16,0.00018356,2]
[367415431,1750789854357,-460.0,0.00018356,2]
[367415433,1750789854367,-609.57,0.00018356,2]
[367415435,1750789854376,-460.0,0.00018356,2]
[367415437,1750789854387,-1500.0,0.00018368,2]
[367415439,1750789854397,-1418.02970594,0.00018368,2]
[367415441,1750789854406,-242.0,0.00018369,2]
[367415443,1750789854416,-242.0,0.00018372,2]
[367415445,1750789854425,-516.90986267,0.00018463,2]
[367415447,1750789854434,-1000.0,0.00018477,2]
[367415449,1750789854443,-1500.0,0.00018522,2]
[367415451,1750789854452,-1500.0,0.00018522,2]
[367415453,1750789854461,-1549.37471033,0.00018522,2]
[367415455,1750789854471,-1500.0,0.00018522,2]
[367415457,1750789854480,-242.0,0.00018529,2]
[367415459,1750789854489,-242.0,0.0001854,2]
[367415461,1750789854498,-161.55454554,0.0001858,2]
[367415463,1750789854507,-151.0,0.0001858,2]
[367415465,1750789854517,-151.0,0.0001858,2]
[367415467,1750789854525,-215.051239,0.0001858,2]
[367415469,1750789854534,-151.0,0.0001858,2]
[367415471,1750789854544,-151.0,0.0001858,2]
[367415473,1750789854553,-460.0,0.0001858,2]
[367415475,1750789854562,-657.28,0.0001858,2]
[367415477,1750789854571,-460.0,0.0001858,2]
[367415479,1750789854579,-1596.13,0.0001858,2]
[367415481,1750789854588,-2939.45,0.0001858,2]
[367415483,1750789854598,-479.58,0.0001858,2]
[367415485,1750789854607,-528.43,0.0001858,2]
[367415487,1750789854615,-460.0,0.0001858,2]
[367415489,1750789854624,-544.42,0.0001858,2]
[367415491,1750789854634,-460.0,0.0001858,2]
[367415493,1750789854644,-460.0,0.0001858,2]
[367415495,1750789854653,-1326.73,0.0001858,2]
[367415497,1750789854663,-1245.03,0.0001858,2]
[367415499,1750789854672,-151.0,0.00018581,2]
[367415501,1750789854681,-460.0,0.00018581,2]
[367415503,1750789854690,-151.0,0.00018581,2]
[367415505,1750789854699,-460.0,0.00018581,2]
[367415506,1750789854708,-227.07301313,0.00018581,2]
[367415509,1750789854718,-151.0,0.00018581,2]
[367415511,1750789854733,-296.049215,0.00018581,2]
[367415513,1750789854742,-296.049215,0.00018581,2]
[367415514,1750789854752,-303.435665,0.00018581,2]
[367415517,1750789854763,-460.0,0.00018581,2]
[367415519,1750789854772,-303.435665,0.00018581,2]
[367415521,1750789854782,-460.0,0.00018581,2]
[367415523,1750789854791,-151.0,0.00018581,2]
[367415525,1750789854801,-460.0,0.00018581,2]
[367415527,1750789854811,-151.0,0.00018581,2]
[367415529,1750789854821,-151.0,0.00018581,2]
[367415531,1750789854830,-460.0,0.00018581,2]
[367415533,1750789854840,-824.68,0.00018581,2]
[367415535,1750789854850,-151.0,0.00018581,2]
[367415537,1750789854859,-151.0,0.00018581,2]
[367415539,1750789854868,-151.0,0.00018581,2]
[367415541,1750789854878,-430.687112,0.00018581,2]
[367415543,1750789854887,-430.687112,0.00018581,2]
[367415544,1750789854896,-667.57,0.00018581,2]
[367415547,1750789854906,-647.219864,0.00018581,2]
[367415548,1750789854915,-647.219864,0.00018581,2]
[367415550,1750789854924,-246.555645,0.00018581,2]
[367415553,1750789854934,-246.555645,0.00018581,2]
[367415554,1750789854943,-460.0,0.00018586,2]
[367415556,1750789854952,-460.0,0.00018586,2]
[367415558,1750789854962,-151.0,0.00018586,2]
[367415561,1750789854971,-177.54,0.00018586,2]
[367415563,1750789854980,-518.3050993,0.00018586,2]
[367415565,1750789854990,-1221.79,0.0001863,2]
[367415566,1750789855000,-460.0,0.0001863,2]
[367415568,1750789855010,-949.17,0.0001863,2]
[367415570,1750789855019,-460.0,0.0001863,2]
[367415572,1750789855028,-566.92,0.0001863,2]
[367415574,1750789855037,-905.2,0.0001863,2]
[367415576,1750789855046,-1741.44,0.0001863,2]
[367415578,1750789855055,-475.22,0.0001863,2]
[367415580,1750789855065,-827.18,0.0001863,2]